Workbook

Sheet Waviness Calculator
A1: Down-Dip Wavelength Calculator
A3: Project: | D3: Lithology: | G3: Date:
A4: Site: | D4: Domain: | G4: Originator: | J4: DO NOT CHANGE THESE CELLS
A6: Borehole Azimuth | D6: 120 | L6: =IF(AND(MAX(J11,D11)>D6,MIN(D11,J11)<D6),"inside","outside") -> inside
A7: Borehole Inclination | C7: α | D7: 60 | E7: Degrees Below Horizontal (positive values only)
A8: Bedding Dip | C8: Ds | D8: 28 | E8: Slope/inter-ramp scale average (positive values only)
A9: Bedding Dip Dir | D9: 90 | J9: =IF(D9+90>360,D9+90-360,D9+90) -> 180 | K9: =IF(D9-90<0,360+D9-90,D9-90) -> 0 | L9: =IF(AND(MAX(D11,J11)>D9,MIN(D11,J11)<D9),"inside","outside") -> inside | M9: =IF(ABS($D9-$D6)>90,IF(ABS($D9-90-$D6)>180,ABS(180-ABS($D9-90-$D6)),ABS($D9-90-$D6)),IF(ABS($D9-90-$D6)>180,180-ABS($D9-90-$D6),ABS($D9-90-$D6)*-1)) -> -120
A10: Apparent Wavelength (m) | C10: Lbh | D10: 5 | E10: Measured downhole
A11: Fold Axis Trend | D11: 0 | E11: In plunge direction | J11: =IF(D11<=180,D11+180,D11-180) -> 180
A13: Down-Dip Wavelength (m) | C13: Ldd | D13: =ABS(D10*SIN(RADIANS(D8))*(SIN(RADIANS(D7))+(COS(RADIANS(D7))*TAN(RADIANS(D8))*SIN(RADIANS(G70)))+(COS(RADIANS(D7))*SIN(RADIANS(G72)))/(SIN(RADIANS(G73))*COS(RADIANS(D8))*SIN(RADIANS(D8))))) -> 3.944509113
A15: Amplitude and Dilation Angle Estimator
G16: Method: | H16: Manual Entry
C17: Dip | D17: Dip Dir
A18: Limb A Max Dip | C18: 38 | D18: 150 | E18: True dip - corrected TV or ori core data
A19: Limb B Max Dip | C19: 49 | D19: 150
C20: Dip | D20: Dip Dir | J20: Manual Entry Calculations
A21: Limb A apparent dip | C21: =IF(H16="Manual Entry", L21,'Tadpole Plot'!L3) -> 21.33774479 | D21: =D9 -> 90 | E21: Apparent dip in the direction of sliding | J21: Limb A apparent dip | L21: =ATAN(TAN(PI()/180*C18)*SIN(PI()/180*(IF((MAX(D$9+90,D18)-MIN(D$9+90,D18))>180,360-(MAX(D$9+90,D18)-MIN(D$9+90,D18)),(MAX(D$9+90,D18)-MIN(D$9+90,D18))))))*180/PI() -> 21.33774479 | M21: =IF(D$9<100,CONCATENATE("0",D$9),D$9) -> 090
A22: Limb B apparent dip | C22: =IF(H16="Manual Entry", L22,'Tadpole Plot'!M3) -> 29.90683289 | D22: =D9 -> 90 | J22: Limb B apparent dip | L22: =ATAN(TAN(PI()/180*C19)*SIN(PI()/180*(IF((MAX(D$9+90,D19)-MIN(D$9+90,D19))>180,360-(MAX(D$9+90,D19)-MIN(D$9+90,D19)),(MAX(D$9+90,D19)-MIN(D$9+90,D19))))))*180/PI() -> 29.90683289 | M22: =IF(D$9<100,CONCATENATE("0",D$9),D$9) -> 090
A24: ILA (Down-dip) | C24: =IF(H16="Manual Entry",L24,'Tadpole Plot'!P3) -> 171.4309119 | E24: Applicable Failure Scale (WL = 2 to 10% surface length): | H24: =CONCATENATE((ROUND(D13*10,0))," to ",ROUND(D13*50,0)," m") -> 39 to 197 m | J24: ILA (Down-dip) | L24: =180-(MAX(L21,L22)-MIN(L21,L22)) -> 171.4309119
A25: Dilation Angle (i) | C25: =IF(H16="Manual Entry", L25,'Tadpole Plot'!Q3) -> 4.284544046 | J25: Roughness Angle (i) | L25: =(180-L24)/2 -> 4.284544046
A48: Instructions:
B49: Only edit blue cells
A50: 1 | B50: Enter borehole orientation data in cells D6 & D7
A51: 2 | B51: Enter the average inter-ramp scale bedding orientation in cells D8 & D9 (i.e., from structural model or similar)
A52: 3 | B52: Enter the apparent wavelength downhole (Lbh), from tadpole plots or similar, in cell D10
A53: 4 | B53: Enter the trend of the waviness fold axis in cell D11 (e.g. from stereographic analysis). If waviness axes are assumed to be parallel to overall bedding strike, simply enter the bedding strike.
A54: 5 | B54: The down-dip wavelength is calculated in cell D13
A55: 6 | B55: Select "Manual Entry" from the dropdown list in cell H16 to enter the apparent limb orientations manually, or select "From Tadpole Sheet" to automatically fill in this data from data entered in the Tadpole Plot tab.
A58: 7 | B58: If using Manual Entry, enter the fold limb dip angles for a typical, representative fold/wave in cells C18 & C19, and associated dip directions in D18 & D19. These are true dip measurements from corrected TV or ori core data. The calculation assumes that both are dipping in the same direction. If they are dipping in opposite directions the minimum dip value should be entered as a negative value.
A63: 8 | B63: The inter-limb angle (ILA) in the direction of the overall bedding dip is calculated in cell C24 and the dilation angle "i" in C25
A65: 9 | B65: The ILA and wavelength are plotted on the Ampliltude chart
A70: DO NOT CHANGE THESE CELLS | B70: Angle between BH Azi and Bedding Strike | F70: β | G70: =IF(G71<0,-1*(MIN(180-(MIN(MOD((D9+90)-D6,360), 360-MOD((D9+90)-D6,360))),(MIN(MOD((D9+90)-D6,360), 360-MOD((D9+90)-D6,360))))),(MIN(180-(MIN(MOD((D9+90)-D6,360), 360-MOD((D9+90)-D6,360))),(MIN(MOD((D9+90)-D6,360), 360-MOD((D9+90)-D6,360)))))) -> -60
B71: Apparent Bedding dip along BH | G71: =ATAN(TAN(PI()/180*D8)*SIN(PI()/180*M9))*180/PI() -> -24.72483545
B72: BH Azi : Axis Trend angle | F72: ɸ | G72: =IF(L6=L9,ABS(MIN(MOD(D11-D6,360),360-MOD(D11-D6,360))),ABS(MIN(MOD(D11-D6,360),360-MOD(D11-D6,360)))*-1) -> 120
B73: Dip Dir : Trend angle | F73: λ | G73: =(MIN(MOD(D11-D9,360),360-MOD(D11-D9,360))) -> 90

Sheet Tadpole Plot
B1: Structural Data - True Dip & Dip Direction
B2: Depth (m) | C2: Dip (°) | D2: Dip Dir (°) | G2: Apparent Dip (°) | I2: Y-axis Major Interval (m) | L2: Lower Bound | M2: Upper Bound | N2: Slope Scale Strike | O2: Ds (°) | P2: ILA (°) | Q2: i (°)
B3: 1.1 | C3: 50.3 | D3: 150 | E3: =(MIN(MOD(D3-(N$3),360),360-MOD(D3-(N$3),360))) -> 30 | G3: =ATAN(TAN(PI()/180*C3)*SIN(PI()/180*E3))*180/PI() -> 31.05857565 | I3: 2 | L3: 22 | M3: 34 | N3: ='Waviness Calculator'!J9 -> 180 | O3: ='Waviness Calculator'!D8 -> 28 | P3: =180-(MAX(M3,L3)-MIN(M3,L3)) -> 168 | Q3: =(180-P3)/2 -> 6 | S3: Instructions:
B4: 1.6 | C4: 44.9 | D4: 151 | E4: 29 | G4: =ATAN(TAN(PI()/180*C4)*SIN(PI()/180*E4))*180/PI() -> 25.78612946 | L4: =L3 -> 22 | M4: =M3 -> 34 | O4: =O3 -> 28
B5: 3.5 | C5: 40 | D5: 151 | E5: =(MIN(MOD(D5-(N$3),360),360-MOD(D5-(N$3),360))) -> 29 | G5: 22.13666743 | S5: 1. Paste corrected (true dip/dip-dir) structural measurements into the blue columns B, C & D. Dip should be positive only.
B6: 4.5 | C6: 41.8 | D6: 149 | E6: 31 | G6: 24.72593741 | S6: The apparent dip in the direction of sliding risk will be calculated in Column G and plotted in the Apparent Dip chart.
B7: 4.9 | C7: 44.3 | D7: 153 | E7: 27 | G7: 23.89481645 | L7: =M13 -> 0.1 | S7: 2. Set the y-axis major interval in cell I6.
B8: 5.6 | C8: 51.6 | D8: 149 | E8: 31 | G8: 33.01646894 | L8: =M12 -> 40.5 | S8: 3. Adjust the upper and lower bounds (red lines) to fit the plotted data by changing cells L6 and M6.
B9: 6.9 | C9: 47.8 | D9: 155 | E9: 25 | G9: 24.98942637 | L9: =setChartAxis("Tadpole Plot","Chart 2","Max","Y","Primary",M12) ->  | S9: 4. The resulting ILA and dilation angle (i) are automatically transfered to the Waviness Calculator sheet, provided that cell H16 is set to "From Tadpole Sheet".
B10: 8.3 | C10: 46.1 | D10: 149 | E10: 31 | G10: 28.15585654 | L10: =setChartAxis("Tadpole Plot","Chart 2","Min","Y","Primary",M13) -> 
B11: 9.2 | C11: 41 | D11: 151 | E11: 29 | G11: 22.85243448 | L11: =setChartAxis("Tadpole Plot","Chart 2","Major","Unit","Primary",I3) -> Unit Primary Major: 2
B12: 9.9 | C12: 44.6 | D12: 149 | E12: 31 | G12: 26.92585694 | L12: Max Depth | M12: =_xlfn.MAXIFS(B:B,C:C,">-10000")+1 -> 40.5
B13: 10.9 | C13: 46.8 | D13: 147 | E13: 33 | G13: 30.11294703 | L13: Min Depth | M13: =IF(_xlfn.MINIFS($B:$B,$C:$C,">-10000")>0,_xlfn.MINIFS($B:$B,$C:$C,">-10000")-1,0) -> 0.1
B14: 12.4 | C14: 49.5 | D14: 151 | E14: 29 | G14: 29.58093996
B15: 12.9 | C15: 50.6 | D15: 151 | E15: 29 | G15: 30.5498221
B16: 13.6 | C16: 50.5 | D16: 151 | E16: 29 | G16: 30.46068371
B17: 14.8 | C17: 45.3 | D17: 150 | E17: 30 | G17: 26.80580833
B18: 15.7 | C18: 39.9 | D18: 145 | E18: 35 | G18: 25.62164678
B19: 16.9 | C19: 42 | D19: 151 | E19: 29 | G19: 23.58245033
B20: 17.5 | C20: 44 | D20: 146 | E20: 34 | G20: 28.3693262
B21: 19.5 | C21: 51.9 | D21: 149 | E21: 31 | G21: 33.29900668
B22: 20 | C22: 47.8 | D22: 155 | E22: 25 | G22: 24.98942637
B23: 21.5 | C23: 45.9 | D23: 145 | E23: 35 | G23: 30.620652
B24: 22.2 | C24: 40.7 | D24: 154 | E24: 26 | G24: 20.65938614
B25: 23.1 | C25: 45.3 | D25: 147 | E25: 33 | G25: 28.8271795
B26: 24.4 | C26: 47.2 | D26: 149 | E26: 31 | G26: 29.08239731
B27: 24.9 | C27: 48.8 | D27: 151 | E27: 29 | G27: 28.97740195
B28: 25.5 | C28: 51 | D28: 148 | E28: 32 | G28: 33.20056681
B29: 26.5 | C29: 50.2 | D29: 152 | E29: 28 | G29: 29.4002709
B30: 28.4 | C30: 44.8 | D30: 150 | E30: 30 | G30: 26.40538535
B31: 29.3 | C31: 39.8 | D31: 155 | E31: 25 | G31: 19.39779129
B32: 29.8 | C32: 42 | D32: 153 | E32: 27 | G32: 22.2335108
B33: 30.6 | C33: 43.8 | D33: 151 | E33: 29 | G33: 24.93445669
B34: 31.8 | C34: 52.2 | D34: 146 | E34: 34 | G34: 35.78810311
B35: 33.1 | C35: 47.7 | D35: 152 | E35: 28 | G35: 27.2911327
B36: 33.7 | C36: 45.9 | D36: 149 | E36: 31 | G36: 27.98966438
B37: 35.5 | C37: 41.1 | D37: 149 | E37: 31 | G37: 24.19420949
B38: 36 | C38: 44.8 | D38: 146 | E38: 34 | G38: 29.0435263
B39: 37 | C39: 46.6 | D39: 150 | E39: 30 | G39: 27.86698339
B40: 37.6 | C40: 49.4 | D40: 145 | E40: 35 | G40: 33.79056116
B41: 39.5 | C41: 50.5 | D41: 154 | E41: 26 | G41: 28.00345239
E42: 180 | G42: 0
E43: 180 | G43: 0
E44: 180 | G44: 0
E45: 180 | G45: 0
E46: 180 | G46: 0
E47: 180 | G47: 0
E48: 180 | G48: 0
E49: 180 | G49: 0
E50: 180 | G50: 0
E51: 180 | G51: 0
E52: 180 | G52: 0
E53: 180 | G53: 0
E54: 180 | G54: 0
E55: 180 | G55: =ATAN(TAN(PI()/180*C55)*SIN(PI()/180*E55))*180/PI() -> 0
E56: 180 | G56: 0
E57: 180 | G57: 0
E58: 180 | G58: 0
E59: 180 | G59: 0
E60: 180 | G60: 0
E61: 180 | G61: 0
E62: 180 | G62: 0
E63: 180 | G63: 0
E64: 180 | G64: 0
E65: 180 | G65: 0
E66: 180 | G66: 0
E67: =(MIN(MOD(D67-(N$3),360),360-MOD(D67-(N$3),360))) -> 180 | G67: 0
E68: 180 | G68: 0
E69: 180 | G69: 0
E70: 180 | G70: 0
E71: 180 | G71: 0
E72: 180 | G72: 0
E73: 180 | G73: 0
E74: 180 | G74: 0
E75: 180 | G75: 0
E76: 180 | G76: 0
E77: 180 | G77: 0
E78: 180 | G78: 0
E79: 180 | G79: 0
E80: 180 | G80: 0
E81: 180 | G81: 0
E82: 180 | G82: 0
E83: 180 | G83: 0
E84: 180 | G84: 0
E85: 180 | G85: 0
E86: 180 | G86: 0
E87: 180 | G87: 0
E88: 180 | G88: 0
E89: 180 | G89: 0
E90: 180 | G90: 0
E91: 180 | G91: 0
E92: 180 | G92: 0
E93: 180 | G93: 0
E94: 180 | G94: 0
E95: 180 | G95: 0
E96: 180 | G96: 0
E97: 180 | G97: 0
E98: 180 | G98: 0
E99: 180 | G99: 0
E100: 180 | G100: 0
E101: 180 | G101: 0
E102: 180 | G102: 0
E103: 180 | G103: 0
E104: 180 | G104: 0
E105: 180 | G105: 0
E106: 180 | G106: 0
E107: 180 | G107: 0
E108: 180 | G108: 0
E109: 180 | G109: 0
E110: 180 | G110: 0
E111: 180 | G111: 0
E112: 180 | G112: 0
E113: 180 | G113: 0
E114: 180 | G114: 0
E115: 180 | G115: 0
E116: 180 | G116: 0
E117: 180 | G117: 0
E118: 180 | G118: 0
E119: 180 | G119: =ATAN(TAN(PI()/180*C119)*SIN(PI()/180*E119))*180/PI() -> 0
E120: 180 | G120: 0
E121: 180 | G121: 0
E122: 180 | G122: 0
E123: 180 | G123: 0
E124: 180 | G124: 0
E125: 180 | G125: 0
E126: 180 | G126: 0
E127: 180 | G127: 0
E128: 180 | G128: 0
E129: 180 | G129: 0
E130: 180 | G130: 0
E131: =(MIN(MOD(D131-(N$3),360),360-MOD(D131-(N$3),360))) -> 180 | G131: 0
E132: 180 | G132: 0
E133: 180 | G133: 0
E134: 180 | G134: 0
E135: 180 | G135: 0
E136: 180 | G136: 0
E137: 180 | G137: 0
E138: 180 | G138: 0
E139: 180 | G139: 0
E140: 180 | G140: 0
E141: 180 | G141: 0
E142: 180 | G142: 0
E143: 180 | G143: 0
E144: 180 | G144: 0
E145: 180 | G145: 0
E146: 180 | G146: 0
E147: 180 | G147: 0
E148: 180 | G148: 0
E149: 180 | G149: 0
E150: 180 | G150: 0
E151: 180 | G151: 0
E152: 180 | G152: 0
E153: 180 | G153: 0
E154: 180 | G154: 0
E155: 180 | G155: 0
E156: 180 | G156: 0
E157: 180 | G157: 0
E158: 180 | G158: 0
E159: 180 | G159: 0
E160: 180 | G160: 0
E161: 180 | G161: 0
E162: 180 | G162: 0
E163: 180 | G163: 0
E164: 180 | G164: 0
E165: 180 | G165: 0
E166: 180 | G166: 0
E167: 180 | G167: 0
E168: 180 | G168: 0
E169: 180 | G169: 0
E170: 180 | G170: 0
E171: 180 | G171: 0
E172: 180 | G172: 0
E173: 180 | G173: 0
E174: 180 | G174: 0
E175: 180 | G175: 0
E176: 180 | G176: 0
E177: 180 | G177: 0
E178: 180 | G178: 0
E179: 180 | G179: 0
E180: 180 | G180: 0
E181: 180 | G181: 0
E182: 180 | G182: 0
E183: 180 | G183: =ATAN(TAN(PI()/180*C183)*SIN(PI()/180*E183))*180/PI() -> 0
E184: 180 | G184: 0
E185: 180 | G185: 0
E186: 180 | G186: 0
E187: 180 | G187: 0
E188: 180 | G188: 0
E189: 180 | G189: 0
E190: 180 | G190: 0
E191: 180 | G191: 0
E192: 180 | G192: 0
E193: 180 | G193: 0
E194: 180 | G194: 0
E195: =(MIN(MOD(D195-(N$3),360),360-MOD(D195-(N$3),360))) -> 180 | G195: 0
E196: 180 | G196: 0
E197: 180 | G197: 0
E198: 180 | G198: 0
E199: 180 | G199: 0
E200: 180 | G200: 0
... 298 more rows
